[Event "Late-Titled-Tuesday-Blitz-December-26-2023"]
[Site "Chess.com"]
[Date "2023.12.26"]
[Round "7"]
[White "almaguerjm"]
[Black "UK_23"]
[Result "1-0"]
[WhiteElo "2484"]
[BlackElo "2351"]
[TimeControl "180+1"]
[EndTime "15:14:32 PST"]
[Termination "almaguerjm won by resignation"]

1. e4 {[%clk 0:02:53.1]} 1... e5 {[%clk 0:02:59.4]} 2. Nf3 {[%clk 0:02:52.7]}
2... Nf6 {[%clk 0:03:00.1]} 3. Nxe5 {[%clk 0:02:50.5]} 3... Nxe4 {[%clk
0:03:00.7]} 4. Qe2 {[%clk 0:02:50]} 4... Qe7 {[%clk 0:03:00.6]} 5. d4 {[%clk
0:02:47.4]} 5... d6 {[%clk 0:03:00.9]} 6. Nd3 {[%clk 0:02:47.8]} 6... d5 {[%clk
0:02:48.6]} 7. Bf4 {[%clk 0:02:41.6]} 7... Nc6 {[%clk 0:02:48.2]} 8. c3 {[%clk
0:02:41.4]} 8... Bf5 {[%clk 0:02:47.2]} 9. f3 {[%clk 0:02:41.5]} 9... Nd6 {[%clk
0:02:45]} 10. Bxd6 {[%clk 0:02:39.1]} 10... cxd6 {[%clk 0:02:44.3]} 11. Qxe7+
{[%clk 0:02:37.9]} 11... Bxe7 {[%clk 0:02:44]} 12. Nf4 {[%clk 0:02:35.1]} 12...
Be6 {[%clk 0:02:39.8]} 13. h4 {[%clk 0:02:33.8]} 13... Kd7 {[%clk 0:02:37.2]}
14. Na3 {[%clk 0:02:16.9]} 14... a6 {[%clk 0:02:36.9]} 15. Nc2 {[%clk
0:02:16.2]} 15... b5 {[%clk 0:02:36.6]} 16. Ne3 {[%clk 0:02:16.3]} 16... Rhe8
{[%clk 0:02:32.7]} 17. Kf2 {[%clk 0:02:16.2]} 17... Na5 {[%clk 0:02:29]} 18.
Nfxd5 {[%clk 0:02:15.4]} 18... Bd8 {[%clk 0:02:28]} 19. g3 {[%clk 0:02:06.5]}
19... g6 {[%clk 0:02:23.9]} 20. b4 {[%clk 0:01:47.4]} 20... Nc4 {[%clk
0:02:20.5]} 21. Bxc4 {[%clk 0:01:47.5]} 21... bxc4 {[%clk 0:02:20.3]} 22. Nf4
{[%clk 0:01:48.1]} 22... Rc8 {[%clk 0:02:12.4]} 23. a4 {[%clk 0:01:45.9]} 23...
f6 {[%clk 0:02:06.3]} 24. h5 {[%clk 0:01:22]} 24... g5 {[%clk 0:02:06.1]} 25.
Nxe6 {[%clk 0:01:22.5]} 25... Rxe6 {[%clk 0:02:05.4]} 26. Nf5 {[%clk 0:01:23]}
26... d5 {[%clk 0:02:02]} 27. Rhe1 {[%clk 0:01:22.1]} 27... Rcc6 {[%clk
0:02:01.5]} 28. Ng7 {[%clk 0:01:20.8]} 28... Rxe1 {[%clk 0:01:55.7]} 29. Rxe1
{[%clk 0:01:21.7]} 29... Bc7 {[%clk 0:01:56.3]} 30. Re8 {[%clk 0:01:09.5]} 30...
Rb6 {[%clk 0:01:49.2]} 31. Rh8 {[%clk 0:01:07]} 31... a5 {[%clk 0:01:46.4]} 32.
b5 {[%clk 0:01:06.7]} 32... Rb7 {[%clk 0:01:42.5]} 33. Rxh7 {[%clk 0:01:06.5]}
33... Kd8 {[%clk 0:01:41]} 34. Ne6+ {[%clk 0:01:06.5]} 1-0

[Event "Late-Titled-Tuesday-Blitz-December-26-2023"]
[Site "Chess.com"]
[Date "2023.12.26"]
[Round "7"]
[White "PapaieDudu"]
[Black "CFalcons8"]
[Result "1-0"]
[WhiteElo "2505"]
[BlackElo "2258"]
[TimeControl "180+1"]
[EndTime "15:14:43 PST"]
[Termination "PapaieDudu won by resignation"]

1. e4 {[%clk 0:03:00.9]} 1... e5 {[%clk 0:02:57.8]} 2. Nf3 {[%clk 0:03:00.9]}
2... Nf6 {[%clk 0:02:55]} 3. Nc3 {[%clk 0:02:56.3]} 3... Nc6 {[%clk 0:02:52.6]}
4. Bb5 {[%clk 0:02:55.1]} 4... Bc5 {[%clk 0:02:50.7]} 5. d3 {[%clk 0:02:51]}
5... a6 {[%clk 0:02:47.6]} 6. Ba4 {[%clk 0:02:50.8]} 6... O-O {[%clk 0:02:46.3]}
7. O-O {[%clk 0:02:49.8]} 7... b5 {[%clk 0:02:33.5]} 8. Bb3 {[%clk 0:02:49.7]}
8... d6 {[%clk 0:02:28.2]} 9. Bg5 {[%clk 0:02:49.6]} 9... h6 {[%clk 0:02:26.8]}
10. Bh4 {[%clk 0:02:49.6]} 10... Bg4 {[%clk 0:02:22.7]} 11. h3 {[%clk
0:02:49.8]} 11... Bh5 {[%clk 0:02:22.1]} 12. g4 {[%clk 0:02:50.2]} 12... Bg6
{[%clk 0:02:19.9]} 13. Nd5 {[%clk 0:02:45.5]} 13... Bh7 {[%clk 0:02:10.9]} 14.
g5 {[%clk 0:02:40.2]} 14... Nd7 {[%clk 0:01:57.6]} 15. gxh6 {[%clk 0:02:38.5]}
15... Qc8 {[%clk 0:01:45.3]} 16. hxg7 {[%clk 0:02:35.2]} 16... Kxg7 {[%clk
0:01:44.8]} 17. Kh2 {[%clk 0:02:20.1]} 17... f6 {[%clk 0:01:33.2]} 18. Rg1+
{[%clk 0:02:12.7]} 18... Kh8 {[%clk 0:01:31.2]} 19. c3 {[%clk 0:02:12.8]} 19...
Qd8 {[%clk 0:01:25.7]} 20. Qd2 {[%clk 0:02:05.2]} 20... Ne7 {[%clk 0:01:25]} 21.
Qh6 {[%clk 0:02:00.8]} 21... Rf7 {[%clk 0:00:49]} 22. Nxe7 {[%clk 0:01:53.4]}
22... Qxe7 {[%clk 0:00:45.2]} 23. Bxf7 {[%clk 0:01:50]} 23... Qxf7 {[%clk
0:00:46.1]} 24. Rg2 {[%clk 0:01:35.7]} 1-0

[Event "Late-Titled-Tuesday-Blitz-December-26-2023"]
[Site "Chess.com"]
[Date "2023.12.26"]
[Round "7"]
[White "GMthekingindian"]
[Black "Championnn-9"]
[Result "0-1"]
[WhiteElo "2317"]
[BlackElo "2516"]
[TimeControl "180+1"]
[EndTime "15:14:58 PST"]
[Termination "Championnn-9 won by resignation"]

1. e4 {[%clk 0:03:00.9]} 1... c6 {[%clk 0:02:58.1]} 2. c4 {[%clk 0:03:00.5]}
2... d5 {[%clk 0:02:54.8]} 3. cxd5 {[%clk 0:03:01.4]} 3... cxd5 {[%clk
0:02:53.8]} 4. exd5 {[%clk 0:03:02.3]} 4... Qxd5 {[%clk 0:02:47]} 5. d4 {[%clk
0:03:01.7]} 5... e6 {[%clk 0:02:43]} 6. Nf3 {[%clk 0:03:00.9]} 6... Nf6 {[%clk
0:02:42.6]} 7. Nc3 {[%clk 0:03:01]} 7... Qd8 {[%clk 0:02:39.2]} 8. Bd3 {[%clk
0:02:58.6]} 8... Nc6 {[%clk 0:02:37.6]} 9. O-O {[%clk 0:02:58.3]} 9... Bd6
{[%clk 0:02:36.6]} 10. Bg5 {[%clk 0:02:56.1]} 10... O-O {[%clk 0:02:31.7]} 11.
Qe2 {[%clk 0:02:52.1]} 11... h6 {[%clk 0:02:28.2]} 12. Bh4 {[%clk 0:02:51.5]}
12... Be7 {[%clk 0:02:21.2]} 13. Rfd1 {[%clk 0:02:44.8]} 13... Nd5 {[%clk
0:02:18.4]} 14. Nxd5 {[%clk 0:02:13.2]} 14... exd5 {[%clk 0:02:10]} 15. Bxe7
{[%clk 0:02:09]} 15... Nxe7 {[%clk 0:02:07.9]} 16. Rac1 {[%clk 0:01:23.5]} 16...
Bg4 {[%clk 0:02:00.9]} 17. h3 {[%clk 0:01:19.3]} 17... Bh5 {[%clk 0:01:59.8]}
18. g4 {[%clk 0:00:53]} 18... Bg6 {[%clk 0:01:59.9]} 19. Ne5 {[%clk 0:00:53]}
19... Bxd3 {[%clk 0:01:57.1]} 20. Rxd3 {[%clk 0:00:53.8]} 20... Re8 {[%clk
0:01:49.3]} 21. Qf3 {[%clk 0:00:49.6]} 21... f6 {[%clk 0:01:49.1]} 22. Re3
{[%clk 0:00:33.6]} 22... fxe5 {[%clk 0:01:48.9]} 23. Rxe5 {[%clk 0:00:33.8]}
23... Nc6 {[%clk 0:01:39.2]} 24. Qxd5+ {[%clk 0:00:31.6]} 24... Qxd5 {[%clk
0:01:34.5]} 25. Rxd5 {[%clk 0:00:32.5]} 25... Rad8 {[%clk 0:01:34.6]} 26. Rb5
{[%clk 0:00:31.3]} 26... Nxd4 {[%clk 0:01:33.6]} 0-1

[Event "Late-Titled-Tuesday-Blitz-December-26-2023"]
[Site "Chess.com"]
[Date "2023.12.26"]
[Round "7"]
[White "Bryanl106"]
[Black "kasparicy"]
[Result "0-1"]
[WhiteElo "2553"]
[BlackElo "2471"]
[TimeControl "180+1"]
[EndTime "15:15:29 PST"]
[Termination "kasparicy won by checkmate"]

1. e4 {[%clk 0:03:00.2]} 1... c5 {[%clk 0:02:59.6]} 2. Nf3 {[%clk 0:03:00.4]}
2... d6 {[%clk 0:02:59.1]} 3. d4 {[%clk 0:02:59]} 3... cxd4 {[%clk 0:03:00]} 4.
Nxd4 {[%clk 0:02:59.8]} 4... Nf6 {[%clk 0:03:00.2]} 5. Nc3 {[%clk 0:03:00.3]}
5... a6 {[%clk 0:03:00.5]} 6. h3 {[%clk 0:03:00]} 6... e6 {[%clk 0:02:58.6]} 7.
g4 {[%clk 0:02:59.7]} 7... b5 {[%clk 0:02:57.9]} 8. Bg2 {[%clk 0:02:59.1]} 8...
Bb7 {[%clk 0:02:58.3]} 9. a3 {[%clk 0:02:53.1]} 9... Nfd7 {[%clk 0:02:57.8]} 10.
O-O {[%clk 0:02:52.7]} 10... Be7 {[%clk 0:02:57.4]} 11. g5 {[%clk 0:02:52.1]}
11... Bxg5 {[%clk 0:02:53.3]} 12. Nxe6 {[%clk 0:02:51.6]} 12... fxe6 {[%clk
0:02:49.6]} 13. Qh5+ {[%clk 0:02:51.5]} 13... g6 {[%clk 0:02:49.8]} 14. Qxg5
{[%clk 0:02:52]} 14... Qxg5 {[%clk 0:02:49.6]} 15. Bxg5 {[%clk 0:02:52.9]} 15...
Ne5 {[%clk 0:02:34.2]} 16. Rad1 {[%clk 0:02:51.2]} 16... Nf7 {[%clk 0:02:34.1]}
17. Bf4 {[%clk 0:02:43.9]} 17... e5 {[%clk 0:02:29.5]} 18. Be3 {[%clk
0:02:43.4]} 18... Nc6 {[%clk 0:02:23.1]} 19. f4 {[%clk 0:02:43.5]} 19... O-O
{[%clk 0:02:20]} 20. Nd5 {[%clk 0:02:41.4]} 20... Na5 {[%clk 0:02:09.8]} 21. b3
{[%clk 0:02:08.4]} 21... Bxd5 {[%clk 0:01:55]} 22. Rxd5 {[%clk 0:02:09.3]} 22...
Rac8 {[%clk 0:01:54.7]} 23. Rf2 {[%clk 0:02:06]} 23... Rc6 {[%clk 0:01:50.8]}
24. a4 {[%clk 0:02:03.9]} 24... Rb8 {[%clk 0:01:40.1]} 25. f5 {[%clk 0:02:02.3]}
25... Rcc8 {[%clk 0:01:03.7]} 26. Bf1 {[%clk 0:01:56.7]} 26... Nc6 {[%clk
0:01:02.6]} 27. axb5 {[%clk 0:01:55.2]} 27... Nb4 {[%clk 0:00:59.8]} 28. bxa6
{[%clk 0:01:55.6]} 28... Nxd5 {[%clk 0:00:59.4]} 29. exd5 {[%clk 0:01:56.5]}
29... gxf5 {[%clk 0:00:57]} 30. a7 {[%clk 0:01:55.6]} 30... Ra8 {[%clk
0:00:56.6]} 31. Bb6 {[%clk 0:01:46.9]} 31... f4 {[%clk 0:00:56.5]} 32. Ba6
{[%clk 0:01:45.3]} 32... Rxa7 {[%clk 0:00:52.3]} 33. Bxc8 {[%clk 0:01:45]} 33...
Ra1+ {[%clk 0:00:44]} 34. Rf1 {[%clk 0:01:43.7]} 34... Ra2 {[%clk 0:00:42.7]}
35. c4 {[%clk 0:01:36]} 35... Ng5 {[%clk 0:00:42.4]} 36. Bc7 {[%clk 0:01:33.3]}
36... Ne4 {[%clk 0:00:40]} 37. Re1 {[%clk 0:01:30.9]} 37... Ng3 {[%clk 0:00:35]}
38. Bxd6 {[%clk 0:01:29.9]} 38... f3 {[%clk 0:00:35.1]} 39. Bc5 {[%clk
0:01:25.4]} 39... Rg2# {[%clk 0:00:35]} 0-1

[Event "Late-Titled-Tuesday-Blitz-December-26-2023"]
[Site "Chess.com"]
[Date "2023.12.26"]
[Round "7"]
[White "FREZZY23"]
[Black "olawsson"]
[Result "1-0"]
[WhiteElo "2390"]
[BlackElo "2169"]
[TimeControl "180+1"]
[EndTime "15:15:34 PST"]
[Termination "FREZZY23 won on time"]

1. d4 {[%clk 0:03:00.5]} 1... d6 {[%clk 0:02:58.3]} 2. Nf3 {[%clk 0:03:01.1]}
2... g6 {[%clk 0:02:57.2]} 3. g3 {[%clk 0:03:01.7]} 3... Bg7 {[%clk 0:02:57.4]}
4. Bg2 {[%clk 0:03:02.4]} 4... Nf6 {[%clk 0:02:56.4]} 5. O-O {[%clk 0:03:03]}
5... O-O {[%clk 0:02:56.3]} 6. c4 {[%clk 0:03:02.9]} 6... c6 {[%clk 0:02:56.4]}
7. Nc3 {[%clk 0:03:02.7]} 7... Qa5 {[%clk 0:02:56.9]} 8. e4 {[%clk 0:03:00.9]}
8... Qh5 {[%clk 0:02:51.7]} 9. e5 {[%clk 0:02:58.6]} 9... dxe5 {[%clk
0:02:41.3]} 10. Nxe5 {[%clk 0:02:58.9]} 10... Ng4 {[%clk 0:02:15.5]} 11. Nxg4
{[%clk 0:02:55.3]} 11... Bxg4 {[%clk 0:02:13]} 12. Qb3 {[%clk 0:02:54.8]} 12...
Bxd4 {[%clk 0:01:37.5]} 13. Qxb7 {[%clk 0:02:53.8]} 13... Nd7 {[%clk 0:01:37]}
14. Bf4 {[%clk 0:01:56.9]} 14... e5 {[%clk 0:00:37]} 15. Bc1 {[%clk 0:01:50.8]}
15... Nc5 {[%clk 0:00:28.6]} 16. Qxc6 {[%clk 0:01:50.1]} 16... Rac8 {[%clk
0:00:23.6]} 17. Qd6 {[%clk 0:01:35.3]} 17... Rfd8 {[%clk 0:00:19.1]} 18. Qe7
{[%clk 0:01:34.9]} 18... Nd3 {[%clk 0:00:16.3]} 19. Nd5 {[%clk 0:01:19.1]} 19...
Rxd5 {[%clk 0:00:07.6]} 20. Bxd5 {[%clk 0:01:18.1]} 20... Be2 {[%clk 0:00:02.9]}
21. Qxf7+ {[%clk 0:01:16.4]} 1-0

[Event "Late-Titled-Tuesday-Blitz-December-26-2023"]
[Site "Chess.com"]
[Date "2023.12.26"]
[Round "7"]
[White "Zadar321"]
[Black "rdarruda"]
[Result "1-0"]
[WhiteElo "2438"]
[BlackElo "2504"]
[TimeControl "180+1"]
[EndTime "15:15:35 PST"]
[Termination "Zadar321 won by resignation"]

1. e4 {[%clk 0:03:00.6]} 1... c5 {[%clk 0:02:47.8]} 2. Nf3 {[%clk 0:03:00.4]}
2... Nc6 {[%clk 0:02:47.8]} 3. d4 {[%clk 0:03:00.8]} 3... cxd4 {[%clk
0:02:48.6]} 4. Nxd4 {[%clk 0:03:01.5]} 4... e5 {[%clk 0:02:48.8]} 5. Nb5 {[%clk
0:03:01.6]} 5... a6 {[%clk 0:02:49.4]} 6. Nd6+ {[%clk 0:03:01.6]} 6... Bxd6
{[%clk 0:02:50]} 7. Qxd6 {[%clk 0:03:02.4]} 7... Qe7 {[%clk 0:02:50.5]} 8. Qxe7+
{[%clk 0:02:57.6]} 8... Ngxe7 {[%clk 0:02:51.4]} 9. Nc3 {[%clk 0:02:58.2]} 9...
Nb4 {[%clk 0:02:51.2]} 10. Bd3 {[%clk 0:02:55.2]} 10... d5 {[%clk 0:02:50.8]}
11. exd5 {[%clk 0:02:55]} 11... Bf5 {[%clk 0:02:50.5]} 12. Ke2 {[%clk
0:02:41.6]} 12... Bxd3+ {[%clk 0:02:46.7]} 13. cxd3 {[%clk 0:02:41.5]} 13...
O-O-O {[%clk 0:02:46.4]} 14. Be3 {[%clk 0:02:40.8]} 14... Nexd5 {[%clk
0:02:44.3]} 15. Nxd5 {[%clk 0:02:40.9]} 15... Rxd5 {[%clk 0:02:42.2]} 16. Rhd1
{[%clk 0:02:40.3]} 16... Rhd8 {[%clk 0:02:40.5]} 17. Rac1+ {[%clk 0:02:38.6]}
17... Kb8 {[%clk 0:02:39.8]} 18. Rc3 {[%clk 0:02:34.8]} 18... Nxa2 {[%clk
0:02:32.6]} 19. Rb3 {[%clk 0:02:28.9]} 19... a5 {[%clk 0:02:30.5]} 20. Ra1
{[%clk 0:02:21.5]} 20... Nb4 {[%clk 0:02:28.9]} 21. Bb6 {[%clk 0:02:21.3]} 21...
R8d6 {[%clk 0:01:57.4]} 22. Rxa5 {[%clk 0:02:08.3]} 22... Rxb6 {[%clk 0:01:22]}
23. Rxb4 {[%clk 0:02:07.2]} 23... Rxb4 {[%clk 0:01:21.5]} 24. Rxd5 {[%clk
0:02:06.9]} 24... Rxb2+ {[%clk 0:01:22.1]} 25. Ke3 {[%clk 0:02:07.3]} 25... f6
{[%clk 0:01:17.9]} 26. Rd7 {[%clk 0:02:06.7]} 26... b5 {[%clk 0:01:17.5]} 27.
Rxg7 {[%clk 0:02:06.3]} 27... b4 {[%clk 0:01:17.5]} 28. Rxh7 {[%clk 0:02:06.2]}
28... b3 {[%clk 0:01:17.8]} 29. Rh6 {[%clk 0:02:01.4]} 29... Rc2 {[%clk
0:01:16]} 30. Rxf6 {[%clk 0:02:00.3]} 30... Kb7 {[%clk 0:01:16]} 31. Rf7+ {[%clk
0:01:40.2]} 31... Kb6 {[%clk 0:01:09.3]} 32. Rf8 {[%clk 0:01:40.2]} 32... b2
{[%clk 0:01:05.2]} 33. Rb8+ {[%clk 0:01:39.7]} 33... Ka5 {[%clk 0:01:04.9]} 34.
g4 {[%clk 0:01:35.1]} 34... Ka4 {[%clk 0:01:04.6]} 35. g5 {[%clk 0:01:35.1]}
35... Ka3 {[%clk 0:01:04.7]} 36. g6 {[%clk 0:01:16.7]} 36... Rc1 {[%clk
0:01:02.5]} 37. g7 {[%clk 0:01:07.8]} 37... Rg1 {[%clk 0:01:02.4]} 38. g8=Q
{[%clk 0:01:05.2]} 38... Rxg8 {[%clk 0:01:01.6]} 39. Rxg8 {[%clk 0:01:05.7]}
39... b1=Q {[%clk 0:01:02.2]} 40. Ra8+ {[%clk 0:01:05.7]} 40... Kb2 {[%clk
0:01:02.8]} 41. Rb8+ {[%clk 0:01:06.1]} 41... Kc2 {[%clk 0:01:01.3]} 42. Rxb1
{[%clk 0:01:06.4]} 42... Kxb1 {[%clk 0:01:01.4]} 43. d4 {[%clk 0:01:06.7]} 1-0

[Event "Late-Titled-Tuesday-Blitz-December-26-2023"]
[Site "Chess.com"]
[Date "2023.12.26"]
[Round "7"]
[White "DCacheiro"]
[Black "PoXerStar"]
[Result "1-0"]
[WhiteElo "2565"]
[BlackElo "2422"]
[TimeControl "180+1"]
[EndTime "15:15:37 PST"]
[Termination "DCacheiro won on time"]

1. e4 {[%clk 0:03:00.9]} 1... c5 {[%clk 0:02:59.7]} 2. Nf3 {[%clk 0:03:00.9]}
2... g6 {[%clk 0:02:59.7]} 3. d4 {[%clk 0:03:00.7]} 3... cxd4 {[%clk 0:03:00.6]}
4. Qxd4 {[%clk 0:03:00.5]} 4... Nf6 {[%clk 0:03:00.2]} 5. Nc3 {[%clk 0:02:59.9]}
5... Nc6 {[%clk 0:02:54.4]} 6. Qa4 {[%clk 0:03:00.5]} 6... d6 {[%clk 0:02:37.7]}
7. e5 {[%clk 0:02:57.4]} 7... dxe5 {[%clk 0:02:37.5]} 8. Nxe5 {[%clk 0:02:58.3]}
8... Bd7 {[%clk 0:02:37.1]} 9. Nxd7 {[%clk 0:02:57.2]} 9... Qxd7 {[%clk
0:02:29.9]} 10. Bf4 {[%clk 0:02:52.6]} 10... Bg7 {[%clk 0:02:24.6]} 11. Rd1
{[%clk 0:02:42.4]} 11... Qe6+ {[%clk 0:02:23.3]} 12. Be2 {[%clk 0:02:40.6]}
12... O-O {[%clk 0:02:10]} 13. O-O {[%clk 0:02:39.3]} 13... Nd7 {[%clk
0:02:06.2]} 14. Bc4 {[%clk 0:02:15.7]} 14... Qf5 {[%clk 0:01:34.6]} 15. Bd3
{[%clk 0:02:12.3]} 15... Qc5 {[%clk 0:00:48.2]} 16. Be3 {[%clk 0:01:56.6]} 16...
Qh5 {[%clk 0:00:06.1]} 17. Ne4 {[%clk 0:01:40.4]} 17... Nb6 {[%clk 0:00:05]} 18.
Qb3 {[%clk 0:01:36.7]} 18... Rfd8 {[%clk 0:00:03.1]} 19. Ng3 {[%clk 0:01:27.5]}
19... Qa5 {[%clk 0:00:02.8]} 20. c3 {[%clk 0:01:16.6]} 20... Ne5 {[%clk
0:00:01.7]} 21. Be4 {[%clk 0:01:13]} 1-0

[Event "Late-Titled-Tuesday-Blitz-December-26-2023"]
[Site "Chess.com"]
[Date "2023.12.26"]
[Round "7"]
[White "Durarbayli"]
[Black "rasmussvane"]
[Result "1-0"]
[WhiteElo "2926"]
[BlackElo "2922"]
[TimeControl "180+1"]
[EndTime "15:15:50 PST"]
[Termination "Durarbayli won by resignation"]

1. e4 {[%clk 0:03:00.9]} 1... e5 {[%clk 0:02:58.1]} 2. Nf3 {[%clk 0:02:58.2]}
2... Nc6 {[%clk 0:02:58]} 3. Bb5 {[%clk 0:02:58.5]} 3... a6 {[%clk 0:02:56.3]}
4. Ba4 {[%clk 0:02:59]} 4... Nf6 {[%clk 0:02:56.5]} 5. O-O {[%clk 0:02:59]} 5...
Be7 {[%clk 0:02:56.9]} 6. Re1 {[%clk 0:02:58.8]} 6... b5 {[%clk 0:02:57.3]} 7.
Bb3 {[%clk 0:02:59.4]} 7... O-O {[%clk 0:02:57.7]} 8. a4 {[%clk 0:03:00]} 8...
Bb7 {[%clk 0:02:56.6]} 9. d3 {[%clk 0:02:59.6]} 9... d6 {[%clk 0:02:56.4]} 10.
Nbd2 {[%clk 0:02:59.4]} 10... Nd7 {[%clk 0:02:55.7]} 11. c3 {[%clk 0:02:59.4]}
11... Nc5 {[%clk 0:02:52.7]} 12. axb5 {[%clk 0:03:00.1]} 12... axb5 {[%clk
0:02:53.6]} 13. Rxa8 {[%clk 0:03:00.2]} 13... Qxa8 {[%clk 0:02:54.2]} 14. Bc2
{[%clk 0:03:00.7]} 14... b4 {[%clk 0:02:54.8]} 15. Nc4 {[%clk 0:03:00.1]} 15...
bxc3 {[%clk 0:02:50.9]} 16. bxc3 {[%clk 0:03:01]} 16... Bf6 {[%clk 0:02:50.2]}
17. Be3 {[%clk 0:02:40.6]} 17... Nd7 {[%clk 0:02:40.9]} 18. h4 {[%clk
0:02:38.8]} 18... Na5 {[%clk 0:02:32.2]} 19. Ncd2 {[%clk 0:02:35.4]} 19... d5
{[%clk 0:02:25.5]} 20. h5 {[%clk 0:02:28.1]} 20... h6 {[%clk 0:02:22.7]} 21. Nh2
{[%clk 0:02:23.7]} 21... dxe4 {[%clk 0:02:19.7]} 22. dxe4 {[%clk 0:02:15]} 22...
Rd8 {[%clk 0:02:17.9]} 23. Qg4 {[%clk 0:02:05]} 23... Kh8 {[%clk 0:02:03.5]} 24.
Ra1 {[%clk 0:01:57.1]} 24... Bc8 {[%clk 0:01:39.3]} 25. Qf3 {[%clk 0:01:47.6]}
25... Nb8 {[%clk 0:01:14.5]} 26. Nb3 {[%clk 0:01:34.5]} 26... Nbc6 {[%clk
0:01:09.5]} 27. Bxh6 {[%clk 0:01:31.6]} 27... Be6 {[%clk 0:01:00.5]} 28. Nxa5
{[%clk 0:01:04.9]} 28... Nxa5 {[%clk 0:01:01.4]} 29. Be3 {[%clk 0:01:04.2]}
29... Qa6 {[%clk 0:00:38.8]} 30. h6 {[%clk 0:01:00.9]} 30... Qb5 {[%clk
0:00:39.1]} 31. Ng4 {[%clk 0:00:55.9]} 31... Bxg4 {[%clk 0:00:34.5]} 32. Qxg4
{[%clk 0:00:56.8]} 32... Nc4 {[%clk 0:00:32]} 33. hxg7+ {[%clk 0:00:55.7]} 33...
Bxg7 {[%clk 0:00:32.9]} 34. Qh4+ {[%clk 0:00:54.9]} 1-0

[Event "Late-Titled-Tuesday-Blitz-December-26-2023"]
[Site "Chess.com"]
[Date "2023.12.26"]
[Round "7"]
[White "Kildepiotr"]
[Black "GlavkonVVS"]
[Result "0-1"]
[WhiteElo "2666"]
[BlackElo "2539"]
[TimeControl "180+1"]
[EndTime "15:15:54 PST"]
[Termination "GlavkonVVS won by resignation"]

1. Nf3 {[%clk 0:03:00.9]} 1... Nf6 {[%clk 0:03:00.4]} 2. g3 {[%clk 0:03:01.1]}
2... c5 {[%clk 0:03:01]} 3. Bg2 {[%clk 0:03:01.8]} 3... g6 {[%clk 0:03:01.6]} 4.
O-O {[%clk 0:03:02.4]} 4... Bg7 {[%clk 0:03:02.3]} 5. c3 {[%clk 0:03:03.3]} 5...
Nc6 {[%clk 0:03:02.7]} 6. d4 {[%clk 0:03:03.9]} 6... cxd4 {[%clk 0:03:03.4]} 7.
cxd4 {[%clk 0:03:04.8]} 7... O-O {[%clk 0:03:00.3]} 8. Nc3 {[%clk 0:03:05.1]}
8... d5 {[%clk 0:03:00.3]} 9. Ne5 {[%clk 0:03:05.7]} 9... e6 {[%clk 0:02:56.8]}
10. Nxc6 {[%clk 0:03:05.5]} 10... bxc6 {[%clk 0:02:57]} 11. b3 {[%clk
0:03:05.6]} 11... Ba6 {[%clk 0:02:57]} 12. Ba3 {[%clk 0:03:03.9]} 12... Re8
{[%clk 0:02:56.7]} 13. Na4 {[%clk 0:03:03.5]} 13... Nd7 {[%clk 0:02:48.8]} 14.
Rc1 {[%clk 0:03:02.5]} 14... Bb5 {[%clk 0:02:46.8]} 15. Nc5 {[%clk 0:03:02.7]}
15... Nxc5 {[%clk 0:02:32]} 16. Bxc5 {[%clk 0:03:03.6]} 16... e5 {[%clk
0:02:31]} 17. dxe5 {[%clk 0:02:58.2]} 17... Bxe5 {[%clk 0:02:17.9]} 18. Qd2
{[%clk 0:02:50.9]} 18... a5 {[%clk 0:01:59.8]} 19. a4 {[%clk 0:02:45.6]} 19...
Ba6 {[%clk 0:01:58.8]} 20. Rfd1 {[%clk 0:02:45.7]} 20... Rb8 {[%clk 0:01:56.1]}
21. Rb1 {[%clk 0:02:45.1]} 21... Bd6 {[%clk 0:01:44.5]} 22. Bxd6 {[%clk
0:02:44.5]} 22... Qxd6 {[%clk 0:01:44.7]} 23. Qxa5 {[%clk 0:02:44.6]} 23... Bxe2
{[%clk 0:01:43.2]} 24. Re1 {[%clk 0:02:43.5]} 24... Bd3 {[%clk 0:01:39.4]} 25.
Rb2 {[%clk 0:02:34.6]} 25... Qa3 {[%clk 0:01:23.4]} 26. Rbb1 {[%clk 0:01:52]}
26... Bxb1 {[%clk 0:01:22.5]} 27. Rxb1 {[%clk 0:01:52.9]} 27... Rxb3 {[%clk
0:01:18.2]} 28. Rxb3 {[%clk 0:01:52]} 28... Qxb3 {[%clk 0:01:18.5]} 29. h4
{[%clk 0:01:51.2]} 29... Qd1+ {[%clk 0:01:04.9]} 30. Kh2 {[%clk 0:01:51.4]}
30... Qe1 {[%clk 0:01:01.7]} 31. Qb6 {[%clk 0:01:43.8]} 31... Re2 {[%clk
0:00:58.6]} 32. Qxc6 {[%clk 0:01:30.5]} 32... Qxf2 {[%clk 0:00:54.9]} 33. Qxd5
{[%clk 0:01:30.7]} 33... Ra2 {[%clk 0:00:52.2]} 34. a5 {[%clk 0:01:28.1]} 34...
Qd2 {[%clk 0:00:49.5]} 35. Qa8+ {[%clk 0:01:24.6]} 35... Kg7 {[%clk 0:00:49.2]}
36. a6 {[%clk 0:01:25.3]} 36... Qe2 {[%clk 0:00:46.4]} 37. a7 {[%clk 0:01:19.6]}
37... Qf2 {[%clk 0:00:46.2]} 38. Qd5 {[%clk 0:01:16.8]} 38... Rxa7 {[%clk
0:00:45.5]} 39. h5 {[%clk 0:01:15]} 39... Qf6 {[%clk 0:00:42.5]} 40. Kh3 {[%clk
0:01:12]} 40... Ra3 {[%clk 0:00:41.2]} 41. Be4 {[%clk 0:01:09]} 41... Qe6+
{[%clk 0:00:39.7]} 42. Qxe6 {[%clk 0:01:08.7]} 42... fxe6 {[%clk 0:00:40.1]} 43.
hxg6 {[%clk 0:01:09.4]} 43... hxg6 {[%clk 0:00:40.6]} 44. Kg4 {[%clk 0:01:09.2]}
44... Kf6 {[%clk 0:00:40.9]} 0-1